Workbook

Sheet PORTADA

Sheet INSTRUCCIONES
A2: Herramienta de Evaluación Profunda Instrucciones
A4: Metodología | B4: Visita a las instalaciones, aplicación de la herramienta de evaluación profunda con la participación de los trabajadores (preferiblemente expertos, aunque también es posible la participación de los no expertos y llegar a consenso entre los dos), jefes de enfermería y responsables del área de SST.
A6: Paso a paso | B6: Tras informar al Director, Coordinador o Encargado SST las actividades que deben ser objeto de la Evaluación Profunda, gestione la programación de nuevas visitas de al menos seis a ocho horas por cada tarea a evaluar y teniendo en cuenta los actores que deben convocarse con anterioridad. Informe al Director, Coordinador o Encargado SST, que se realizará la aplicación de la herramienta EVALUACIÓN PROFUNDA DE LA PROBLEMÁTICA POR MMP, bajo el siguiente orden: • Observación y conocimiento de la tarea en detalle, realizando registros de video (si la institución lo permite) y consultando información con los trabajadores y el supervisor • Aplicación de la herramienta a trabajadores en un espacio donde pueda sostenerse la entrevista sin interrupciones o influencia de supervisores o jefes de enfermería • Aplicación de la herramienta únicamente con el jefe de enfermería • Aplicación de la herramienta únicamente con el responsable del área de SST • Consolidación de la información Programe una reunión de 2 horas con los diferentes actores invitados para socializar las opiniones sobre las tareas críticas y definir las estrategias de intervención a considerar, que deben traducirse en un plan de trabajo formal. Para la aplicación de la herramienta EVALUACIÓN PROFUNDA DE LA PROBLEMÁTICA POR MMP puede imprimir el Formato de campo desde el archivo Excel correspondiente, aunque lo mejor es diligenciar la información directamente en la versión Excel para optimizar el tiempo. Diligencie la información general de la Empresa, Razón Social, el NIT, fecha de aplicación de la herramienta, la dirección y teléfono principal, así como el municipio.
B7: Describa en detalle y de manera cronológica la tarea crítica por MMP y, registre un video o tome fotografías que soporten dicha descripción. Continúe con el análisis participativo entrevistando a cada uno de los actores por separado, preferiblemente en un espacio sin distracciones y siguiendo el orden de los actores que relaciona el formato, es decir, primero los trabajadores, luego supervisores y jefes y posteriormente responsables del diseño y mejoramiento del proceso En su momento explique a cada uno de ellos el enfoque participativo de la evaluación, fundamentado en las determinantes del sistema de trabajo organizacional, humano, tecnológico y ambiental, citando ejemplos acerca de lo que abarca cada uno de estos aspectos y su importancia. Aplique con cada uno de ellos la herramienta, teniendo en cuenta revisar cada una de las variables estimadas en cada determinante, registrando su opinión respecto a la frecuencia de ocurrencia de cada una de ellas, según la ponderación del correspondiente formato, sea en términos cualitativos o cuantitativos (horas o porcentajes de exposición). Tenga en cuenta que las valoraciones cualitativas corresponden a las variables de las determinantes Organizacional y Humana, con las siguientes opciones de selección:
D9: Valoraciones cualitativas
D10: Sí, siempre | E10: Parcialmente | F10: No, nunca | G10: No aplica
B12: Las valoraciones cuantitativas corresponden a las variables de las determinantes Tecnológica y Ambiental, las siguientes opciones
C14: Valoraciones cuantitativas
C15: >=7 horas | D15: >=4 y < 7 horas | E15: >=2 y < 4 horas | F15: < 2 horas | G15: No, nunca | H15: No aplica
C16: >90% del tiempo | D16: 50% a 89% del tiempo | E16: 25% a 49% del tiempo | F16: 1% a 24% del tiempo
B18: Recuerde registrar observaciones y conclusiones alusivas a cada variable si la respuesta de alguno de los actores lo amerita, así como describir las posibles estrategias de intervención sugeridas. En el momento que exponga cada variable a evaluar si lo requiere, fundamente su discurso, para facilitar la comprensión de los participantes. Culmine la aplicación de la herramienta respondiendo bajo su concepto de evaluador cada una de las variables y formulando sus respectivas conclusiones y recomendaciones, en la columna denominada "Estrategias de intervención sugeridas por especialista", teniendo en cuenta la información obtenida en campo y las respuestas de los demás actores. Si realizó el registro de datos en formatos físicos, digitalice toda la información en el archivo Excel EVALUACIÓN PROFUNDA DE LA PROBLEMÁTICA POR MMP, recuerde que en primera instancia solo deberá diligenciar las pestañas de Información general de la actividad y Análisis participativo. Socialice la información obtenida con la aplicación de la herramienta mediante reunión con los diferentes actores participantes. Inicialmente presente los resultados conforme a la pestaña llamada Consolidado Análisis, lo cual permitirá reconocer las tendencias en cuanto a las opiniones referidas por los actores y definir las determinantes del sistema de trabajo (Organizacional, Humana, Tecnológica o Ambiental) desde las cuales se requiere mayor gestión en intervención. Recuerde que en esta herramienta se describen diferentes estrategias de intervención que pueden entrarse a evaluar. Continúe la socialización presentando las conclusiones y propuestas más relevantes de la pestaña de Análisis participativo, estimando en consenso las estrategias de mayor viabilidad que estarían al alcance de la empresa. Diligencie esta información en la columna del formato digital denominada estrategias de intervención avaladas para plan de acción y cuando termine, pase a la pestaña Plan de acción, donde debe seguir las indicaciones allí descritas para que se configure el formato con las estrategias estimadas como viables y pueda definirse para cada una de ellas Responsable, Cargo, Área, fecha de implementación y seguimiento, estado de implementación y observaciones. Preferiblemente imprima el plan de trabajo y hágalo firmar por los actores de la tarea y la Gerencia.
A20: Actores Invitados y roles | B20: Trabajadores, supervisores o jefes: Suministrarán información verídica sobre las condiciones de trabajo y estarán atentos a corroborar cualquier dato, así como formular ideas de posibilidades de mejoramiento según se vaya aplicando la herramienta. Responsable del diseño y mejoramiento del proceso donde se evalúa la tarea: Suministrará información verídica sobre las condiciones de trabajo, estará atento a corroborar cualquier dato, formulará ideas de posibilidades de mejoramiento y determinará las estrategias de intervención viables a implementar para ser plasmadas en el correspondiente plan de acción y liderará la ejecución de este último. Director, Coordinador o Encargado SST: Informará a trabajadores, supervisores y directores de área, sobre la ejecución y alcance de la Evaluación profunda, facilitará el acceso del evaluador a las áreas que se requieran y la comunicación con los actores invitados, estará atento a corroborar cualquier dato, así como formular ideas de posibilidades de mejoramiento y auditará el cumplimiento del plan de acción dentro de las fechas pactadas
A22: Tiempo requerido | B22: 6 a 8 horas en campo, 4 horas de informe. Total 10 a 12 horas
A24: Recursos | B24: Papelería, Cámara digital, Flexómetro, Elementos de protección personal, computador, sala de reuniones, video beam.
A26: Profesional asignado | B26: Profesional especialista en salud ocupacional, entrenado en la aplicación de las herramientas y preferiblemente con experiencia en ergonomía

Sheet INFORMACION ATEL
A2: Herramienta de Evaluación Profunda Registro de Información ATEL
A4: INFORMACIÓN GENERAL DE LA EMPRESA
A6: Razón Social | M6: NIT | R6: Fecha de diligenciamiento | T6: 2016-04-17
A8: Actividad económica | D8: SERVICIOS DE SALUD DE CUARTO NIVEL
A10: Problemática de movilización manual de pacientes en la empresa | D10: El área de seguridad y salud en el trabajo identifica al área de enfermería compuesta por enfermeras jefe y auxiliares de enfermería, como la población con mayor presencia de alteraciones a nivel músculo esquelético; Dicha población se caracteriza por estar expuesta a múltiples factores de riesgo generadores de DME, debido a las características de la actividad, condiciones de trabajo y otros aspectos relacionados a los individuos
A12: Dirección | M12: Teléfonos | R12: Municipio
A14: Observaciones | D14: Para el desarrollo de la intervención y observación se identifica que el área de hospitalización y Urgencias son las que presentan mayor criticidad por MMP , de manera que se toman los pisos 5,6,8 y el area de urgencias con el fin de ifdentificar la problemática.
A16: INFORMACIÓN GENERAL DE LOS TRABAJADORES
A19: No. total de trabajadores en la empresa | B19: Total trabajadores expuestos a peligros por MMP | D19: Mujeres expuestas a peligros por MMP | F19: Hombres expuestos a peligros por MMP
B20: No. | C20: Porcentaje vs total de la empresa | D20: No. | E20: Porcentaje vs total de expuestos | F20: No. | G20: Porcentaje vs total de expuestos
A21: 2699 | B21: 370 | C21: =B21*100%/A21 -> 0.1370878103 | D21: 320 | E21: =D21*100%/B21 -> 0.8648648649 | F21: 50 | G21: =F21*100%/B21 -> 0.1351351351
A22: 1
A30: Edad población expuesta | B30: Rango | C30: Mujeres | E30: Hombres
C31: No. | D31: Porcentaje | E31: No. | F31: Porcentaje
B32: 18 a 25 | C32: 85 | D32: =C32*100%/D21 -> 0.265625 | E32: 15 | F32: =E32*100%/F21 -> 0.3
B33: 26 a 35 | C33: 153 | D33: =C33*100%/D21 -> 0.478125 | E33: 21 | F33: =E33*100%/F21 -> 0.42
B34: 36 a 45 | C34: 68 | D34: =C34*100%/D21 -> 0.2125 | E34: 9 | F34: =E34*100%/F21 -> 0.18
B35: 46 a 55 | C35: 14 | D35: =C35*100%/D21 -> 0.04375 | E35: 4 | F35: =E35*100%/F21 -> 0.08
B36: 56 o más | D36: =C36*100%/D21 -> 0 | E36: 1 | F36: =E36*100%/F21 -> 0.02
A44: INFORMACIÓN GENERAL SOBRE LA FORMA DE CONTRATACIÓN
B46: Trabajadores expuestos a MMP
B47: Directos | C47: Porcentaje | D47: Contratistas | E47: Porcentaje
B48: 370 | C48: =B48*100%/B21 -> 1 | E48: =D48*100%/B21 -> 0
A51: INFORMACIÓN BÁSICA SOBRE SEGURIDAD Y SALUD EN EL TRABAJO
C53: Presencia de los siguientes registros/ documentos | H53: Actualización dentro de los últimos 12 meses | K53: Calidad de la información de los registros para el Dx. Inicial | N53: Calificación parcial calidad de la información de los registros | P53: Calificación calidad de la información de los registros
C54: Identificación de peligros, evaluación y valoración de riesgos | H54: SI | K54: Suficiente | N54: =IF(K54="Suficiente","0,1",IF(K54="Regular","0,5",IF(K54="Sin información","1"))) -> 0,1 | P54: =N54+N55+N56 -> 0.7
C55: Caracterización de la accidentalidad por sobresfuerzos y falsos movimientos relacionados con MMP | H55: SI | K55: Suficiente | N55: =IF(K55="Suficiente","0,1",IF(K55="Regular","0,5",IF(K55="Sin información","1"))) -> 0,1
C56: Caracterización por desórdenes músculo esqueléticos DME | H56: SI | K56: Regular | N56: =IF(K56="Suficiente","0,1",IF(K56="Regular","0,5",IF(K56="Sin información","1"))) -> 0,5
A58: ANÁLISIS DE ACCIDENTALIDAD POR SOBRESFUERZOS Y FALSOS MOVIMIENTOS RELACIONADOS CON MMP
C60: AÑO 2014 | D60: AÑO 2015 | E60: AÑO 2016 | F60: TOTAL
A61: Total de accidentes | C61: 305 | D61: 277 | E61: 240 | F61: =SUM(C61:E61) -> 822
A62: Días perdidos por total de accidentes | C62: 336 | D62: 458 | E62: 320 | F62: =SUM(C62:E62) -> 1114
A63: Accidentes por sobresfuerzos relacionados con MMP | C63: 44 | D63: 31 | E63: 14 | F63: =SUM(C63:E63) -> 89
A64: Días perdidos tras accidentes por sobresfuerzos relacionados con MMP | C64: 71 | D64: 100 | E64: 32 | F64: =SUM(C64:E64) -> 203
A65: Porcentaje accidentes por sobresfuerzos relacionados con MMP vs el total | C65: =C63*100%/C61 -> 0.1442622951 | D65: =D63*100%/D61 -> 0.1119133574 | E65: =E63*100%/E61 -> 0.05833333333
D74: AÑO 2014 | E74: AÑO 2015 | F74: AÑO 2016 | G74: TOTAL | J74: Porcentaje
A75: Número de accidentes de trabajo por sobresfuerzo relacionados con MMP que comprometieron lesiones en segmentos corporales | B75: Miembros superiores | D75: 14 | E75: 8 | F75: 4 | G75: =SUM(D75:F75) -> 26 | J75: =G75*100%/F63 -> 0.2921348315
B76: Columna | D76: 28 | E76: 28 | F76: 10 | G76: =SUM(D76:F76) -> 66 | J76: =G76*100%/F63 -> 0.7415730337
B77: Miembros inferiores | D77: 0 | E77: 0 | F77: 0 | G77: =SUM(D77:F77) -> 0 | J77: =G77*100%/F63 -> 0
B86: Àrea | D86: AÑO 2014 | E86: AÑO 2015 | F86: AÑO 2016 | G86: TOTAL | J86: %
A87: No. de accidentes por sobresfuerzos relacionados con MMP | B87: Hospitalizacion | D87: 16 | E87: 11 | F87: 4 | G87: =SUM(D87:F87) -> 31 | J87: =G87*100%/F63 -> 0.3483146067
B88: Farmacia | D88: 1 | E88: 1 | G88: =SUM(D88:F88) -> 2 | J88: =G88*100%/F63 -> 0.02247191011
B89: Rehabilitacion | D89: 1 | G89: 1 | J89: =G89*100%/F63 -> 0.01123595506
B90: Sala de cirugias | D90: 2 | G90: 2 | J90: =G90*100%/F63 -> 0.02247191011
B91: Sala de partos | D91: 2 | G91: 2 | J91: =G91*100%/F63 -> 0.02247191011
B92: Quirofanos | D92: 1 | E92: 1 | G92: 2 | J92: =G92*100%/F63 -> 0.02247191011
B93: UCI | D93: 1 | E93: 6 | F93: 2 | G93: 9 | J93: =G93*100%/F63 -> 0.1011235955
B94: Unidad de extension hospitalaria | D94: 1 | F94: 4 | G94: 5 | J94: =G94*100%/F63 -> 0.05617977528
B95: urgencias | D95: 5 | E95: 11 | F95: 4 | G95: 20 | J95: =G95*100%/F63 -> 0.2247191011
B97: Área | D97: AÑO 2014 | E97: AÑO 2015 | F97: AÑO 2016 | G97: TOTAL
A98: No. Días perdidos accidentes por MMP | B98: Hospitalizacion | D98: 27 | E98: 26 | F98: 9 | G98: =SUM(D98:F98) -> 62
B99: Farmacia | D99: 2 | E99: 2 | G99: =SUM(D99:F99) -> 4
B100: Rehabilitacion | D100: 2 | G100: 2
B101: Sala de cirugias | D101: 2 | E101: 3 | G101: 5
B102: Sala de partos | D102: 8 | G102: 8
B103: UCI | D103: 5 | E103: 28 | G103: 33
B104: Unidad de extension hospitalaria | D104: 3 | F104: 5 | G104: 8
B105: urgencias | D105: 11 | E105: 30 | F105: 19 | G105: 60
G106: 0
A109: REGISTRO DE DESÓRDENES MÚSCULO ESQUELÉTICOS EN ÁREAS CRÍTICAS POR EXPOSICIÓN A MMP
C112: AÑO 2014 | D112: AÑO 2015 | E112: AÑO 2016 | F112: TOTAL
A113: No. de trabajadores con sintomatología Músculo Esquelética | E113: 49 | F113: =SUM(C113:E113) -> 49
A114: Desórdenes Músculo Esqueléticos de origen común | E114: 26 | F114: =SUM(C114:E114) -> 26
A115: Desórdenes Músculo Esqueléticos de origen laboral | E115: 7 | F115: =SUM(C115:E115) -> 7
A116: Total Desórdenes Músculo Esqueléticos | C116: =SUM(C114:C115) -> 0 | D116: =SUM(D114:D115) -> 0 | E116: =SUM(E114:E115) -> 33 | F116: =SUM(C116:E116) -> 33
A117: Días perdidos por Desórdenes Músculo Esqueléticos | F117: =SUM(C117:E117) -> 0
D127: AÑO 2014 | E127: AÑO 2015 | F127: AÑO 2016 | G127: TOTAL | J127: Porcentaje
A128: Total de Desórdenes Músculo Esqueléticos de cualquier origen | B128: Miembros superiores | E128: 12 | F128: 8 | G128: =SUM(D128:F128) -> 20 | J128: =G128*100%/F116 -> 0.6060606061
B129: Columna | E129: 21 | F129: 11 | G129: =SUM(D129:F129) -> 32 | J129: =G129*100%/F116 -> 0.9696969697
B130: Miembros inferiores | G130: =SUM(D130:F130) -> 0 | J130: =G130*100%/F116 -> 0
B139: Área | D139: AÑO 2014 | E139: AÑO 2015 | F139: AÑO 2016 | G139: TOTAL | J139: %
A140: Número de Desórdenes Músculo Esqueléticos | G140: =SUM(D140:F140) -> 0 | J140: =G140*100%/F116 -> 0
G141: =SUM(D141:F141) -> 0 | J141: =G141*100%/F116 -> 0
G142: 0 | J142: =G142*100%/F116 -> 0
G143: 0 | J143: =G143*100%/F116 -> 0
G144: 0 | J144: =G144*100%/F116 -> 0
G145: 0 | J145: =G145*100%/F116 -> 0
G146: 0 | J146: =G146*100%/F116 -> 0
G147: 0 | J147: =G147*100%/F116 -> 0
G148: 0 | J148: =G148*100%/F116 -> 0
D150: AÑO 2014 | E150: AÑO 2015 | F150: AÑO 2016 | G150: TOTAL
A151: Número de días perdidos por Desórdenes Músculo Esqueléticos | G151: =SUM(D151:F151) -> 0
G152: =SUM(D152:F152) -> 0
G153: 0
G154: 0
G155: 0
G156: 0
G157: 0
G158: 0
G159: 0
A161: CONCLUSIONES

Sheet INFORMACIÓN GENERAL
A2: Herramienta de Evaluación Profunda Registro de Información General
A4: Razón Social | AB4: Fecha de evaluación
A6: INFORMACIÓN GENERAL DE LA TAREA CRÍTICA A EVALUAR
A8: Nombre de la tarea crítica por movilización manual de pacientes | O8: Nombre del proceso crítico
A10: Apellidos y nombres del trabajador que supervisa la tarea crítica | J10: Cargo | Q10: Apellidos y nombres del trabajador responsable de diseño y mejoramiento de procesos | AE10: Cargo
A12: Descripción de la tarea crítica por movilización manual de pacientes
A13: El proceso de trabajo para la auxiliar de enfermería, consiste en proveer cuidado personal al conjunto de pacientes que se atienden en el piso o servicio, la atención está centrada en dar apoyo en tareas de movilización de los usuarios dentro del piso y la habitación asignada. El cuidado al paciente se realiza desde el momento que ingresa al servicio lo que implica acciones como: • Registro de notas para el área de enfermería • Toma de signos vitales • Movilización del paciente dentro del área ( habitación , baño) • Baño y asistencia en cuidados básicos del paciente (cambio de ropa, cambio de pañales, asistencia en labores de higiene mayor y menor, alimentación, etc) • Curaciones y cambios de posición • Cambio de tendido en las camas
A16: Material fotográfico e imágenes de la tarea crítica

Sheet ANÁLISIS PARTICIPATIVO
A2: Herramienta de Evaluación Profunda Análisis Participativo
A4: ='INFORMACIÓN GENERAL'!A4:D4 -> Razón Social | D4: ='INFORMACIÓN GENERAL'!E4 -> 0 | X4: ='INFORMACIÓN GENERAL'!A8 -> Nombre de la tarea crítica por movilización manual de pacientes | AH4: ='INFORMACIÓN GENERAL'!E8 -> 0 | AQ4: ='INFORMACIÓN GENERAL'!O8 -> Nombre del proceso crítico | AR4: ='INFORMACIÓN GENERAL'!V8 -> 0
D6: ACTORES DE LA TAREA | AE6: ESPECIALISTA EN ERGONOMÍA
D7: TRABAJADOR EXPERTO | M7: SUPERVISOR O JEFE | V7: RESPONSABLE DISEÑO Y MEJORAMIENTO DEL PROCESO
C8: VARIABLES A EVALUAR | D8: Sí, siempre | E8: Parcialmente | J8: No, nunca | L8: No aplica | M8: Sí, siempre | N8: Parcialmente | S8: No, nunca | U8: No aplica | V8: Sí, siempre | W8: Parcialmente | AB8: No, nunca | AD8: No aplica | AE8: Sí, siempre | AF8: Parcialmente | AK8: No, nunca | AM8: No aplica | AN8: TOTAL | AO8: PRIORIDAD DE LA INTERVENCIÓN SEGÚN CALIFICACIÓN | AP8: OBSERVACIONES Y CONCLUSIONES | AQ8: ESTRATEGIAS DE INTERVENCIÓN SUGERIDAS POR ACTORES DE LA TAREA | AR8: ESTRATEGIAS DE INTERVENCIÓN SUGERIDAS POR ESPECIALISTA EN ERGONOMÍA | AS8: ESTRATEGIAS DE INTERVENCIÓN AVALADAS PARA PLAN DE ACCIÓN
A9: DETERMINANTE ORGANIZACIONAL | B9: 1 | C9: Hay una política de Seguridad y Salud en el trabajo, que se ve reflejada en la asignación de recursos para las intervenciones dirigidas a mitigar la problemática por MMP | H9: =IF(D9=0,"0",IF(D9="X","1")) -> 0 | I9: =IF(E9=0,"0",IF(E9="X","2")) -> 0 | J9: X | K9: =IF(J9=0,"0",IF(J9="X","3")) -> 3 | N9: X | Q9: =IF(M9=0,"0",IF(M9="X","1")) -> 0 | R9: =IF(N9=0,"0",IF(N9="X","2")) -> 2 | T9: =IF(S9=0,"0",IF(S9="X","3")) -> 0 | W9: X | Z9: =IF(V9=0,"0",IF(V9="X","1")) -> 0 | AA9: =IF(W9=0,"0",IF(W9="X","2")) -> 2 | AC9: =IF(AB9=0,"0",IF(AB9="X","3")) -> 0 | AI9: =IF(AE9=0,"0",IF(AE9="X","1")) -> 0 | AJ9: =IF(AF9=0,"0",IF(AF9="X","2")) -> 0 | AK9: X | AL9: =IF(AK9=0,"0",IF(AK9="X","3")) -> 3 | AN9: =H9+I9+K9+Q9+R9+T9+Z9+AA9+AC9+AI9+AJ9+AL9 -> 10 | AO9: =IF(AN9<=4,"BAJA",IF(AN9<=8,"MEDIA",IF(AN9<=11,"ALTA",IF(AN9<=12,"MUY ALTA",)))) -> ALTA
B10: 2 | C10: Se mantiene actualizada (últimos 6 meses) la información para la vigilancia de las condiciones de salud músculo esquelética de los trabajadores expuestos y de las condiciones de trabajo en donde se ejecutan tareas de MMP | E10: X | H10: =IF(D10=0,"0",IF(D10="X","1")) -> 0 | I10: =IF(E10=0,"0",IF(E10="X","2")) -> 2 | K10: =IF(J10=0,"0",IF(J10="X","3")) -> 0 | N10: X | Q10: =IF(M10=0,"0",IF(M10="X","1")) -> 0 | R10: =IF(N10=0,"0",IF(N10="X","2")) -> 2 | T10: =IF(S10=0,"0",IF(S10="X","3")) -> 0 | W10: X | Z10: =IF(V10=0,"0",IF(V10="X","1")) -> 0 | AA10: =IF(W10=0,"0",IF(W10="X","2")) -> 2 | AC10: =IF(AB10=0,"0",IF(AB10="X","3")) -> 0 | AF10: X | AI10: =IF(AE10=0,"0",IF(AE10="X","1")) -> 0 | AJ10: =IF(AF10=0,"0",IF(AF10="X","2")) -> 2 | AL10: =IF(AK10=0,"0",IF(AK10="X","3")) -> 0 | AN10: =H10+I10+K10+Q10+R10+T10+Z10+AA10+AC10+AI10+AJ10+AL10 -> 8 | AO10: =IF(AN10<=4,"BAJA",IF(AN10<=8,"MEDIA",IF(AN10<=11,"ALTA",IF(AN10<=12,"MUY ALTA",)))) -> MEDIA
B11: 3 | C11: Se realizan exámenes médicos ocupacionales con énfasis en evaluación clínica de los desórdenes músculo esqueléticos de columna, miembros superiores e inferiores. | E11: X | H11: 0 | I11: 2 | K11: 0 | N11: X | Q11: 0 | R11: 2 | T11: 0 | W11: X | Z11: 0 | AA11: 2 | AC11: 0 | AF11: X | AI11: 0 | AJ11: 2 | AL11: 0 | AN11: 8 | AO11: MEDIA
B12: 4 | C12: Se realizan evaluaciones de las cualidades físicas (fuerza, flexibilidad, resistencia cardiovascular) | H12: 0 | I12: 0 | J12: X | K12: 3 | Q12: 0 | R12: 0 | S12: X | T12: 3 | Z12: 0 | AA12: 0 | AB12: X | AC12: 3 | AI12: 0 | AJ12: 0 | AK12: X | AL12: 3 | AN12: 12 | AO12: MUY ALTA
B13: 5 | C13: La asignación de enfermeras (auxiliares y jefes) en la unidad o piso es suficiente y/o se ajusta al numero de pacientes, teniendo en cuenta las características funcionales y necesidad de asistencia que requieren los pacientes | H13: 0 | I13: 0 | J13: X | K13: 3 | Q13: 0 | R13: 0 | S13: X | T13: 3 | W13: X | Z13: 0 | AA13: 2 | AC13: 0 | AI13: 0 | AJ13: 0 | AK13: X | AL13: 3 | AN13: 11 | AO13: ALTA
B14: 6 | C14: La asignación de pacientes permite la alternancia en la atención de usuarios con limitaciones funcionales elevadas y usuarios funcionales que no demandan asistencia para su movilización, permitiendo la recuperación física de los expuestos. | E14: X | H14: 0 | I14: 2 | K14: 0 | N14: X | Q14: 0 | R14: 2 | T14: 0 | W14: X | Z14: 0 | AA14: 2 | AC14: 0 | AF14: X | AI14: 0 | AJ14: 2 | AL14: 0 | AN14: 8 | AO14: MEDIA
B15: 7 | C15: Existe planeación para suministrar y utilizar, prioritaria y equitativamente las ayudas mecánicas (camillas, sillas de ruedas, grúas, rollos de movilización) en el piso o unidad | H15: 0 | I15: 0 | J15: X | K15: 3 | Q15: 0 | R15: 0 | S15: X | T15: 3 | Z15: 0 | AA15: 0 | AB15: X | AC15: 3 | AI15: 0 | AJ15: 0 | AK15: X | AL15: 3 | AN15: 12 | AO15: MUY ALTA
B16: 8 | C16: Existe un programa de mantenimiento predictivo y/o preventivo que garantice el adecuado funcionamiento de las ayudas mecánicas | H16: 0 | I16: 0 | J16: X | K16: 3 | Q16: 0 | R16: 0 | S16: X | T16: 3 | Z16: 0 | AA16: 0 | AB16: X | AC16: 3 | AI16: 0 | AJ16: 0 | AK16: X | AL16: 3 | AN16: 12 | AO16: MUY ALTA
B17: 9 | C17: Se documentan requerimientos ergonómicos en los procedimientos de selección y adquisición de ayudas mecánicas (camas, sillas de ruedas, camillas, rollos de movilización), teniendo en cuenta las necesidades de movilización de pacientes con diferentes caracteristicas de funcionalidad e independencia. | H17: 0 | I17: 0 | J17: X | K17: 3 | Q17: 0 | R17: 0 | S17: X | T17: 3 | Z17: 0 | AA17: 0 | AB17: X | AC17: 3 | AI17: 0 | AJ17: 0 | AK17: X | AL17: 3 | AN17: 12 | AO17: MUY ALTA
B18: 10 | C18: Existen procedimientos para estimar las necesidades de ayudas mecánicas y trabajo en equipo durante la movilización de pacientes | H18: 0 | I18: 0 | J18: X | K18: 3 | Q18: 0 | R18: 0 | S18: X | T18: 3 | Z18: 0 | AA18: 0 | AB18: X | AC18: 3 | AI18: 0 | AJ18: 0 | AK18: X | AL18: 3 | AN18: 12 | AO18: MUY ALTA
B19: 11 | C19: Los jefes de área (unidad o piso) conocen los procedimientos seguros para la MMP y velan por su cumplimiento | H19: 0 | I19: 0 | J19: X | K19: 3 | N19: X | Q19: 0 | R19: 2 | T19: 0 | W19: X | Z19: 0 | AA19: 2 | AC19: 0 | AF19: X | AI19: 0 | AJ19: 2 | AL19: 0 | AN19: 9 | AO19: ALTA
B20: 12 | C20: La asignación del número de pacientes por enfermera, permite la colaboración entre el grupo de trabajo asignado al piso o unidad | E20: X | H20: 0 | I20: 2 | K20: 0 | N20: X | Q20: 0 | R20: 2 | T20: 0 | W20: X | Z20: 0 | AA20: 2 | AC20: 0 | AF20: X | AI20: 0 | AJ20: 2 | AL20: 0 | AN20: 8 | AO20: MEDIA
B21: 13 | C21: La tarea es ejecutada por personal de contratación directa | D21: X | H21: 1 | I21: 0 | K21: 0 | M21: X | Q21: 1 | R21: 0 | T21: 0 | V21: X | Z21: 1 | AA21: 0 | AC21: 0 | AE21: X | AI21: 1 | AJ21: 0 | AL21: 0 | AN21: 4 | AO21: BAJA
B22: 14 | C22: Se implementa un programa de formación en prevención de DME y AT por MMP | H22: 0 | I22: 0 | J22: X | K22: 3 | Q22: 0 | R22: 0 | S22: X | T22: 3 | W22: X | Z22: 0 | AA22: 2 | AC22: 0 | AI22: 0 | AJ22: 0 | AK22: X | AL22: 3 | AN22: 11 | AO22: ALTA
B23: 15 | C23: Se cuenta con un perfil ocupacional específico para la selección de la población que realiza atención de pacientes que requieren asistencia (transferencia, movilización, baño, vestido, etc) | H23: 0 | I23: 0 | J23: X | K23: 3 | Q23: 0 | R23: 0 | S23: X | T23: 3 | Z23: 0 | AA23: 0 | AB23: X | AC23: 3 | AI23: 0 | AJ23: 0 | AK23: X | AL23: 3 | AN23: 12 | AO23: MUY ALTA
B24: 16 | C24: Las mujeres en estado de embarazo ejecutan actividades con ausencia o muy baja exigencia de MMP | E24: X | H24: 0 | I24: 2 | K24: 0 | N24: X | Q24: 0 | R24: 2 | T24: 0 | W24: X | Z24: 0 | AA24: 2 | AC24: 0 | AE24: X | AI24: 1 | AJ24: 0 | AL24: 0 | AN24: 7 | AO24: MEDIA
A25: DETERMINANTE HUMANA | B25: 17 | C25: Los trabajadores demuestran estar entrenados y poseer conocimiento suficiente para desempeñar de forma segura la MMP | E25: X | H25: 0 | I25: 2 | K25: 0 | N25: X | Q25: 0 | R25: 2 | T25: 0 | W25: X | Z25: 0 | AA25: 2 | AC25: 0 | AI25: 0 | AJ25: 0 | AK25: X | AL25: 3 | AN25: 9 | AO25: ALTA
B26: 18 | C26: Se evidencia la planificación y trabajo en equipo entre el personal del piso o Unidad para realizar tareas de MMP | D26: X | H26: 1 | I26: 0 | K26: 0 | M26: X | Q26: 1 | R26: 0 | T26: 0 | V26: X | Z26: 1 | AA26: 0 | AC26: 0 | AE26: X | AI26: 1 | AJ26: 0 | AL26: 0 | AN26: 4 | AO26: BAJA
D27: =o>7 horas >90% del tiempo | E27: >=4 y < 7 horas 50% a 89% del tiempo | F27: >=2 y < 4 horas 25% a 49% del tiempo | G27: < 2 horas 1% a 24% del tiempo | J27: No, nunca | L27: No aplica | M27: =o>7 horas >90% del tiempo | N27: >=4 y < 7 horas 50% a 89% del tiempo | O27: >=2 y < 4 horas 25% a 49% del tiempo | P27: < 2 horas 1% a 24% del tiempo | S27: No, nunca | U27: No aplica | V27: =o>7 horas >90% del tiempo | W27: >=4 y < 7 horas 50% a 89% del tiempo | X27: >=2 y < 4 horas 25% a 49% del tiempo | Y27: < 2 horas 1% a 24% del tiempo | AB27: No, nunca | AD27: No aplica | AE27: =o>7 horas >90% del tiempo | AF27: >=4 y < 7 horas 50% a 89% del tiempo | AG27: >=2 y < 4 horas 25% a 49% del tiempo | AH27: < 2 horas 1% a 24% del tiempo | AK27: No, nunca | AM27: No aplica | AN27: TOTAL
A28: DETERMINANTE TECNOLÓGICA | B28: 21 | C28: Las ayudas mecánicas para la MMP ( sillas de ruedas, sillas pato, camillas) asignadas al piso o Unidad son suficientes para los requerimientos que se tienen | H28: =IF(F28=0,"0",IF(F28="X","1")) -> 0 | I28: =IF(G28=0,"0",IF(G28="X","2")) -> 0 | J28: X | K28: =IF(J28=0,"0",IF(J28="X","3")) -> 3 | Q28: =IF(O28=0,"0",IF(O28="X","1")) -> 0 | R28: =IF(P28=0,"0",IF(P28="X","2")) -> 0 | S28: X | T28: =IF(S28=0,"0",IF(S28="X","3")) -> 3 | Z28: =IF(X28=0,"0",IF(X28="X","1")) -> 0 | AA28: =IF(Y28=0,"0",IF(Y28="X","2")) -> 0 | AB28: X | AC28: =IF(AB28=0,"0",IF(AB28="X","3")) -> 3 | AI28: =IF(AG28=0,"0",IF(AG28="X","1")) -> 0 | AJ28: =IF(AH28=0,"0",IF(AH28="X","2")) -> 0 | AK28: X | AL28: =IF(AK28=0,"0",IF(AK28="X","3")) -> 3 | AN28: 12 | AO28: MUY ALTA
B29: 22 | C29: Las camas y camillas presentan sistemas de regulación que permiten al personal adaptar la altura durante la MMP | F29: X | H29: 1 | I29: 0 | K29: 0 | O29: X | Q29: 1 | R29: 0 | T29: 0 | X29: X | Z29: 1 | AA29: 0 | AC29: 0 | AG29: X | AI29: 1 | AJ29: 0 | AL29: 0 | AN29: 4 | AO29: BAJA
B30: 23 | C30: Las camas y camillas tienen dispositivos mecánicos en buen estado que permiten regular la inclinación de la cabecera según la necesidad del paciente y conveniencia del personal | G30: X | H30: 0 | I30: 2 | K30: 0 | P30: X | Q30: 0 | R30: 2 | T30: 0 | Y30: X | Z30: 0 | AA30: 2 | AC30: 0 | AH30: X | AI30: 0 | AJ30: 2 | AL30: 0 | AN30: 8 | AO30: MEDIA
B31: 24 | C31: La ubicación de la cama en las habitaciones permite espacio suficiente para que el personal pueda ubicarse correctamente, evitar giros de tronco >45° y permite el movimiento del cuerpo en bloque | H31: 0 | I31: 0 | J31: X | K31: 3 | Q31: 0 | R31: 0 | S31: X | T31: 3 | Y31: X | Z31: 0 | AA31: 2 | AC31: 0 | AI31: 0 | AJ31: 0 | AK31: X | AL31: 3 | AN31: 11 | AO31: ALTA
B32: 25 | C32: La dimensión de camas y camillas permiten la adecuada alineación postural de la columna y miembros superiores durante la movilización y asistencia al paciente | D32: X | H32: 0 | I32: 0 | K32: 0 | M32: X | Q32: 0 | R32: 0 | T32: 0 | V32: X | Z32: 0 | AA32: 0 | AC32: 0 | AE32: X | AI32: 0 | AJ32: 0 | AL32: 0 | AN32: 0 | AO32: BAJA
B33: 26 | C33: Las barandas de las camas y camillas se pueden retirar o ajustar con el fin de facilitar la movilización y transferencia del paciente. | G33: X | H33: 0 | I33: 2 | K33: 0 | P33: X | Q33: 0 | R33: 2 | T33: 0 | Y33: X | Z33: 0 | AA33: 2 | AC33: 0 | AH33: X | AI33: 0 | AJ33: 2 | AL33: 0 | AN33: 8 | AO33: MEDIA
B34: 27 | C34: Existen dispositivos o mecanismos (agarraderas suspendidas al techo, botones para inclinar la cama, subir o baja barandas) para que los pacientes puedan ayudarse durante su movilización y transferencia | G34: X | H34: 0 | I34: 2 | K34: 0 | P34: X | Q34: 0 | R34: 2 | T34: 0 | Y34: X | Z34: 0 | AA34: 2 | AC34: 0 | AH34: X | AI34: 0 | AJ34: 2 | AL34: 0 | AN34: 8 | AO34: MEDIA
B35: 28 | C35: La camas y camillas son fáciles de empujar y ubicar según las características locativas del área | G35: X | H35: 0 | I35: 2 | K35: 0 | P35: X | Q35: 0 | R35: 2 | T35: 0 | Y35: X | Z35: 0 | AA35: 2 | AC35: 0 | AH35: X | AI35: 0 | AJ35: 2 | AL35: 0 | AN35: 8 | AO35: MEDIA
B36: 29 | C36: La sillas de ruedas (o sillas pato) son fáciles de empujar y ubicar según las características físicas y espacios del área | H36: 0 | I36: 0 | J36: X | K36: 3 | Q36: 0 | R36: 0 | S36: X | T36: 3 | Z36: 0 | AA36: 0 | AB36: X | AC36: 3 | AI36: 0 | AJ36: 0 | AK36: X | AL36: 3 | AN36: 12 | AO36: MUY ALTA
B37: 30 | C37: La dimensión (ancho) de las sillas de ruedas o sillas pato permiten que el paciente se siente o levante fácilmente | G37: X | H37: 0 | I37: 2 | K37: 0 | P37: X | Q37: 0 | R37: 2 | T37: 0 | Y37: X | Z37: 0 | AA37: 2 | AC37: 0 | AI37: 0 | AJ37: 0 | AK37: X | AL37: 3 | AN37: 9 | AO37: ALTA
B38: 31 | C38: La silla de ruedas permite retirar o desarmar los apoyapiés y otros dispositivos como correas de ajuste, con el fin de permitir el ingreso adecuado del personal que realiza la MMP | G38: X | H38: 0 | I38: 2 | K38: 0 | P38: X | Q38: 0 | R38: 2 | T38: 0 | Y38: X | Z38: 0 | AA38: 2 | AC38: 0 | AH38: X | AI38: 0 | AJ38: 2 | AL38: 0 | AN38: 8 | AO38: MEDIA
B39: 32 | C39: Cuentan con grúas para el levantamiento de pacientes con necesidades especiales y dependientes para movilizarse | H39: 0 | I39: 0 | J39: X | K39: 3 | Q39: 0 | R39: 0 | S39: X | T39: 3 | Z39: 0 | AA39: 0 | AB39: X | AC39: 3 | AI39: 0 | AJ39: 0 | AK39: X | AL39: 3 | AN39: 12 | AO39: MUY ALTA
B40: 33 | C40: Las grúas de levantamiento presentan tamaños acordes con los espacios físicos de las instalaciones y sistemas de ajustabilidad horizontal y vertical , facilitando la maniobrabilidad y ubicación del paciente | H40: 0 | I40: 0 | K40: 0 | L40: X | Q40: 0 | R40: 0 | T40: 0 | U40: X | Z40: 0 | AA40: 0 | AC40: 0 | AD40: X | AI40: 0 | AJ40: 0 | AL40: 0 | AM40: X | AN40: 0 | AO40: BAJA
B41: 34 | C41: Las ayudas mecánicas rodantes (camas, sillas pato) tienen agarraderas ergonomicas que permitan empujarlas facilmente | G41: X | H41: 0 | I41: 2 | K41: 0 | Q41: 0 | R41: 0 | S41: X | T41: 3 | Y41: X | Z41: 0 | AA41: 2 | AC41: 0 | AI41: 0 | AJ41: 0 | AK41: X | AL41: 3 | AN41: 10 | AO41: ALTA
B42: 36 | C42: El piso o Unidad cuenta con suficientes rodillos y tablas para la movilización de pacientes | H42: 0 | I42: 0 | J42: X | K42: 3 | Q42: 0 | R42: 0 | S42: X | T42: 3 | Y42: X | Z42: 0 | AA42: 2 | AC42: 0 | AI42: 0 | AJ42: 0 | AK42: X | AL42: 3 | AN42: 11 | AO42: ALTA
B43: 37 | C43: Los sistemas de ajustabilidad y freno de las ayudas mecánicas se encuentran en adecuado estado de mantenimiento | H43: 0 | I43: 0 | J43: X | K43: 3 | Q43: 0 | R43: 0 | S43: X | T43: 3 | Y43: X | Z43: 0 | AA43: 2 | AC43: 0 | AI43: 0 | AJ43: 0 | AK43: X | AL43: 3 | AN43: 11 | AO43: ALTA
A44: DETERMINANTE AMBIENTAL | B44: 39 | C44: Los espacios físicos (corredores, salas de imágenes diagnosticas, etc.) donde se realiza la MMP con uso de ayudas mecánicas son amplios y libres de obstáculos | G44: X | H44: 0 | I44: 2 | K44: 0 | P44: X | Q44: 0 | R44: 2 | T44: 0 | X44: X | Z44: 1 | AA44: 0 | AC44: 0 | AH44: X | AI44: 0 | AJ44: 2 | AL44: 0 | AN44: 7 | AO44: MEDIA
B45: 40 | C45: Los baños (duchas, inodoros y lavamanos) permiten el ingreso fácil del paciente cuando esta siendo movilizado en la silla pato , así como de otros aditamentos (caminador) | G45: X | H45: 0 | I45: 2 | K45: 0 | P45: X | Q45: 0 | R45: 2 | T45: 0 | Y45: X | Z45: 0 | AA45: 2 | AC45: 0 | AH45: X | AI45: 0 | AJ45: 2 | AL45: 0 | AN45: 8 | AO45: MEDIA
B46: 41 | C46: Los baños (duchas, inodoro ,lavamanos) cuentan con elementos de asimiento (barras) que les permite agarrarse y apoyarse, facilitando la MMP | G46: X | H46: 0 | I46: 2 | K46: 0 | P46: X | Q46: 0 | R46: 2 | T46: 0 | Y46: X | Z46: 0 | AA46: 2 | AC46: 0 | AH46: X | AI46: 0 | AJ46: 2 | AL46: 0 | AN46: 8 | AO46: MEDIA
B47: 42 | C47: El diámetro de las puertas permite la accesibilidad adecuada de las ayudas mecánicas ( grúa, cama, silla de ruedas, camilla) | G47: X | H47: 0 | I47: 2 | K47: 0 | P47: X | Q47: 0 | R47: 2 | T47: 0 | Y47: X | Z47: 0 | AA47: 2 | AC47: 0 | AH47: X | AI47: 0 | AJ47: 2 | AL47: 0 | AN47: 8 | AO47: MEDIA
B48: 43 | C48: La altura de los inodoros cuenta con la medida ergonómica recomendada (55 cm), en beneficio de la accesibilidad durante la MMP | D48: X | H48: 0 | I48: 0 | K48: 0 | M48: X | Q48: 0 | R48: 0 | T48: 0 | V48: X | Z48: 0 | AA48: 0 | AC48: 0 | AE48: X | AI48: 0 | AJ48: 0 | AL48: 0 | AN48: 0 | AO48: BAJA
B49: 44 | C49: Las duchas son móviles y cuentan con bandeja o silla para sentar al paciente. | G49: X | H49: 0 | I49: 2 | K49: 0 | P49: X | Q49: 0 | R49: 2 | T49: 0 | Y49: X | Z49: 0 | AA49: 2 | AC49: 0 | AH49: X | AI49: 0 | AJ49: 2 | AL49: 0 | AN49: 8 | AO49: MEDIA
B50: 45 | C50: Los pisos de los baños donde se realiza la asistencia a los pacientes son antideslizantes, sin cambios de nivel y permite realizar la MMP bajo condiciones de seguridad. | G50: X | H50: 0 | I50: 2 | K50: 0 | P50: X | Q50: 0 | R50: 2 | T50: 0 | Z50: 0 | AA50: 0 | AB50: X | AC50: 3 | AI50: 0 | AJ50: 0 | AK50: X | AL50: 3 | AN50: 10 | AO50: ALTA
B51: 46 | C51: Los pisos de las instalaciones físicas de los diferentes unidades son antideslizantes , sin cambios de nivel y permite realizar la MMP bajo condiciones de seguridad | D51: X | H51: 0 | I51: 0 | K51: 0 | M51: X | Q51: 0 | R51: 0 | T51: 0 | V51: X | Z51: 0 | AA51: 0 | AC51: 0 | AG51: X | AI51: 1 | AJ51: 0 | AL51: 0 | AN51: 1 | AO51: BAJA
B52: 47 | C52: Los espacios que necesariamente presentan cambios de nivel (entrada y salida a ascensores, rampas) se mantienen debidamente demarcados, libres de obstáculos, con anchos y largos suficientes, así como pendientes que responden a la fórmula (desnivel x 100 / 10%) | F52: X | H52: 1 | I52: 0 | K52: 0 | N52: X | Q52: 0 | R52: 0 | T52: 0 | V52: X | Z52: 0 | AA52: 0 | AC52: 0 | AG52: X | AI52: 1 | AJ52: 0 | AL52: 0 | AN52: 2 | AO52: BAJA
B53: 48 | C53: La altura de las sillas de estar o descanso donde se sientan los pacientes cuentan con la medida ergonómica recomendada (55 cms) | G53: X | H53: 0 | I53: 2 | K53: 0 | P53: X | Q53: 0 | R53: 2 | T53: 0 | Y53: X | Z53: 0 | AA53: 2 | AC53: 0 | AI53: 0 | AJ53: 0 | AK53: X | AL53: 3 | AN53: 9 | AO53: ALTA
B54: 49 | C54: Las condiciones de iluminación general favorecen la visibilidad durante la MMP | D54: X | H54: 0 | I54: 0 | K54: 0 | M54: X | Q54: 0 | R54: 0 | T54: 0 | V54: X | Z54: =IF(X54=0,"0",IF(X54="X","1")) -> 0 | AA54: =IF(Y54=0,"0",IF(Y54="X","2")) -> 0 | AC54: 0 | AE54: X | AI54: =IF(AG54=0,"0",IF(AG54="X","1")) -> 0 | AJ54: =IF(AH54=0,"0",IF(AH54="X","2")) -> 0 | AL54: 0 | AN54: 0 | AO54: BAJA

Sheet CONSOLIDADO ANÁLISIS
A2: Herramienta de Evaluación Profunda Consolidado Análisis
A4: ='INFORMACIÓN GENERAL'!A4 -> Razón Social | C4: ='INFORMACIÓN GENERAL'!E4 -> 0 | I4: ='INFORMACIÓN GENERAL'!A8 -> Nombre de la tarea crítica por movilización manual de pacientes | K4: ='INFORMACIÓN GENERAL'!E8:M8 -> 0 | P4: ='INFORMACIÓN GENERAL'!O8 -> Nombre del proceso crítico | S4: ='INFORMACIÓN GENERAL'!V8 -> 0
A6: CONSOLIDADO OPINIÓN TRABAJADOR(ES) EXPERTO(S)
I8: OPINIÓN SOBRE PRESENCIA Y/O FRECUENCIA DE OCURRENCIA DE LAS VARIABLES EVALUADAS
D9: No. DE VARIABLES EVALUADAS | E9: % IMPORTANCIA ASIGNADO POR DETERMINANTE | I9: SÍ, siempre | K9: Parcialmente | M9: No, nunca | N9: No aplica | O9: SUMA DE VARIABLES QUE OCURREN SIEMPRE O MÁS DEL 50% O, NO APLICAN | S9: % GESTIÓN DE INTERVENCIÓN SEGÚN % DE IMPORTANCIA ASIGNADO POR DETERMINANTE | W9: %GESTIÓN DE INTERVENCIÓN GENERAL POR DETERMINANTE
I10: =o>7 horas >90% del tiempo | J10: >=4 y < 7 horas 50% a 89% del tiempo | K10: >=2 y < 4 horas 25% a 49% del tiempo | L10: < 2 horas 1% a 24% del tiempo
A11: DETERMINANTE ORGANIZACIONAL | D11: 16 | E11: 30 | I11: =COUNTIF('ANÁLISIS PARTICIPATIVO'!D9:D24,"X") -> 1 | J11: 0 | K11: =COUNTIF('ANÁLISIS PARTICIPATIVO'!E9:E24,"X") -> 5 | M11: =COUNTIF('ANÁLISIS PARTICIPATIVO'!J9:J24,"X") -> 10 | N11: =COUNTIF('ANÁLISIS PARTICIPATIVO'!L9:L24,"X") -> 0 | O11: =SUM(I11:J11) -> 1 | S11: =E11/D11*O11/100 -> 0.01875 | W11: =O11*100%/D11 -> 0.0625
A12: DETERMINANTE HUMANA | D12: 2 | E12: 10 | I12: =COUNTIF('ANÁLISIS PARTICIPATIVO'!D25:D26,"X") -> 1 | J12: 0 | K12: =COUNTIF('ANÁLISIS PARTICIPATIVO'!E25:E26,"X") -> 1 | M12: =COUNTIF('ANÁLISIS PARTICIPATIVO'!J25:J26,"X") -> 0 | N12: =COUNTIF('ANÁLISIS PARTICIPATIVO'!L25:L26,"X") -> 0 | O12: =SUM(I12:J12) -> 1 | S12: =E12/D12*O12/100 -> 0.05 | W12: =O12*100%/D12 -> 0.5
A13: DETERMINANTE TECNOLÓGICA | D13: =COUNT('ANÁLISIS PARTICIPATIVO'!B28:B43) -> 16 | E13: 30 | I13: =COUNTIF('ANÁLISIS PARTICIPATIVO'!D28:D43,"X") -> 1 | J13: =COUNTIF('ANÁLISIS PARTICIPATIVO'!E28:E43,"X") -> 0 | K13: =COUNTIF('ANÁLISIS PARTICIPATIVO'!F28:F43,"X")+COUNTIF('ANÁLISIS PARTICIPATIVO'!G28:G43,"X") -> 8 | M13: =COUNTIF('ANÁLISIS PARTICIPATIVO'!J28:J43,"X") -> 6 | N13: =COUNTIF('ANÁLISIS PARTICIPATIVO'!L28:L43,"X") -> 1 | O13: =SUM(I13:J13) -> 1 | S13: =E13/D13*O13/100 -> 0.01875 | W13: =O13*100%/D13 -> 0.0625
A14: DETERMINANTE AMBIENTAL | D14: =COUNT('ANÁLISIS PARTICIPATIVO'!B44:B54) -> 11 | E14: 30 | I14: =COUNTIF('ANÁLISIS PARTICIPATIVO'!D44:D54,"X") -> 3 | J14: =COUNTIF('ANÁLISIS PARTICIPATIVO'!E44:E54,"X") -> 0 | K14: =COUNTIF('ANÁLISIS PARTICIPATIVO'!F44:F54,"X")+COUNTIF('ANÁLISIS PARTICIPATIVO'!G44:G54,"X") -> 8 | M14: =COUNTIF('ANÁLISIS PARTICIPATIVO'!J44:J54,"X") -> 0 | N14: =COUNTIF('ANÁLISIS PARTICIPATIVO'!L44:L54,"X") -> 0 | O14: =SUM(I14:J14) -> 3 | S14: =E14/D14*O14/100 -> 0.08181818182 | W14: =O14*100%/D14 -> 0.2727272727
A49: CONSOLIDADO OPINIÓN JEFE O SUPERVISOR
I51: OPINIÓN SOBRE PRESENCIA Y/O FRECUENCIA DE OCURRENCIA DE LAS VARIABLES EVALUADAS
D52: No. DE VARIABLES EVALUADAS | E52: % IMPORTANCIA ASIGNADO POR DETERMINANTE | I52: SÍ, siempre | K52: Parcialmente | M52: No, nunca | N52: No aplica | O52: SUMA DE VARIABLES QUE OCURREN SIEMPRE O MÁS DEL 50% O, NO APLICAN | S52: % GESTIÓN DE INTERVENCIÓN SEGÚN % DE IMPORTANCIA ASIGNADO POR DETERMINANTE | W52: %GESTIÓN DE INTERVENCIÓN GENERAL POR DETERMINANTE
I53: =o>7 horas >90% del tiempo | J53: >=4 y < 7 horas 50% a 89% del tiempo | K53: >=2 y < 4 horas 25% a 49% del tiempo | L53: < 2 horas 1% a 24% del tiempo
A54: DETERMINANTE ORGANIZACIONAL | D54: 16 | E54: =E11 -> 30 | I54: =COUNTIF('ANÁLISIS PARTICIPATIVO'!M9:M24,"X") -> 1 | J54: 0 | K54: =COUNTIF('ANÁLISIS PARTICIPATIVO'!N9:N24,"X") -> 7 | M54: =COUNTIF('ANÁLISIS PARTICIPATIVO'!S9:S24,"X") -> 8 | N54: =COUNTIF('ANÁLISIS PARTICIPATIVO'!U9:U24,"X") -> 0 | O54: =SUM(I54:J54) -> 1 | S54: =E54/D54*O54/100 -> 0.01875 | W54: =O54*100%/D54 -> 0.0625
A55: DETERMINANTE HUMANA | D55: 2 | E55: =E12 -> 10 | I55: =COUNTIF('ANÁLISIS PARTICIPATIVO'!M25:M26,"X") -> 1 | J55: 0 | K55: =COUNTIF('ANÁLISIS PARTICIPATIVO'!N25:N26,"X") -> 1 | M55: =COUNTIF('ANÁLISIS PARTICIPATIVO'!S25:S26,"X") -> 0 | N55: =COUNTIF('ANÁLISIS PARTICIPATIVO'!U25:U26,"X") -> 0 | O55: =SUM(I55:J55) -> 1 | S55: =E55/D55*O55/100 -> 0.05 | W55: =O55*100%/D55 -> 0.5
A56: DETERMINANTE TECNOLÓGICA | D56: 20 | E56: =E13 -> 30 | I56: =COUNTIF('ANÁLISIS PARTICIPATIVO'!M28:M43,"X") -> 1 | J56: =COUNTIF('ANÁLISIS PARTICIPATIVO'!N28:N43,"X") -> 0 | K56: =COUNTIF('ANÁLISIS PARTICIPATIVO'!O28:O43,"X")+COUNTIF('ANÁLISIS PARTICIPATIVO'!P28:P43,"X") -> 7 | M56: =COUNTIF('ANÁLISIS PARTICIPATIVO'!S28:S43,"X") -> 7 | N56: =COUNTIF('ANÁLISIS PARTICIPATIVO'!U28:U43,"X") -> 1 | O56: =SUM(I56:J56) -> 1 | S56: =E56/D56*O56/100 -> 0.015 | W56: =O56*100%/D56 -> 0.05
A57: DETERMINANTE AMBIENTAL | D57: 11 | E57: =E14 -> 30 | I57: =COUNTIF('ANÁLISIS PARTICIPATIVO'!M44:M54,"X") -> 3 | J57: =COUNTIF('ANÁLISIS PARTICIPATIVO'!N44:N54,"X") -> 1 | K57: =COUNTIF('ANÁLISIS PARTICIPATIVO'!O44:O54,"X")+COUNTIF('ANÁLISIS PARTICIPATIVO'!P44:P54,"X") -> 7 | M57: =COUNTIF('ANÁLISIS PARTICIPATIVO'!S44:S54,"X") -> 0 | N57: =COUNTIF('ANÁLISIS PARTICIPATIVO'!U44:U54,"X") -> 0 | O57: =SUM(I57:J57) -> 4 | S57: =E57/D57*O57/100 -> 0.1090909091 | W57: =O57*100%/D57 -> 0.3636363636
A92: CONSOLIDADO OPINIÓN RESPONSABLE DEL DISEÑO Y MEJORAMIENTO DEL PROCESO
I94: OPINIÓN SOBRE PRESENCIA Y/O FRECUENCIA DE OCURRENCIA DE LAS VARIABLES EVALUADAS
D95: No. DE VARIABLES EVALUADAS | E95: % IMPORTANCIA ASIGNADO POR DETERMINANTE | I95: SÍ, siempre | K95: Parcialmente | M95: No, nunca | N95: No aplica | O95: SUMA DE VARIABLES QUE OCURREN SIEMPRE O MÁS DEL 50% O, NO APLICAN | S95: % GESTIÓN DE INTERVENCIÓN SEGÚN % DE IMPORTANCIA ASIGNADO POR DETERMINANTE | W95: %GESTIÓN DE INTERVENCIÓN GENERAL POR DETERMINANTE
I96: =o>7 horas >90% del tiempo | J96: >=4 y < 7 horas 50% a 89% del tiempo | K96: >=2 y < 4 horas 25% a 49% del tiempo | L96: < 2 horas 1% a 24% del tiempo
A97: DETERMINANTE ORGANIZACIONAL | D97: 16 | E97: =E11 -> 30 | I97: =COUNTIF('ANÁLISIS PARTICIPATIVO'!V9:V24,"X") -> 1 | J97: 0 | K97: =COUNTIF('ANÁLISIS PARTICIPATIVO'!W9:W24,"X") -> 9 | M97: =COUNTIF('ANÁLISIS PARTICIPATIVO'!AB9:AB24,"X") -> 6 | N97: =COUNTIF('ANÁLISIS PARTICIPATIVO'!AD9:AD24,"X") -> 0 | O97: =SUM(I97:J97) -> 1 | S97: =E97/D97*O97/100 -> 0.01875 | W97: =O97*100%/D97 -> 0.0625
A98: DETERMINANTE HUMANA | D98: 2 | E98: =E12 -> 10 | I98: =COUNTIF('ANÁLISIS PARTICIPATIVO'!V25:V26,"X") -> 1 | J98: 0 | K98: =COUNTIF('ANÁLISIS PARTICIPATIVO'!W25:W26,"X") -> 1 | M98: =COUNTIF('ANÁLISIS PARTICIPATIVO'!AB25:AB26,"X") -> 0 | N98: =COUNTIF('ANÁLISIS PARTICIPATIVO'!AD25:AD26,"X") -> 0 | O98: =SUM(I98:J98) -> 1 | S98: =E98/D98*O98/100 -> 0.05 | W98: =O98*100%/D98 -> 0.5
A99: DETERMINANTE TECNOLÓGICA | D99: 20 | E99: =E13 -> 30 | I99: =COUNTIF('ANÁLISIS PARTICIPATIVO'!V28:V43,"X") -> 1 | J99: =COUNTIF('ANÁLISIS PARTICIPATIVO'!W28:W43,"X") -> 0 | K99: =COUNTIF('ANÁLISIS PARTICIPATIVO'!X28:X43,"X")+COUNTIF('ANÁLISIS PARTICIPATIVO'!Y28:Y43,"X") -> 11 | M99: =COUNTIF('ANÁLISIS PARTICIPATIVO'!AB28:AB43,"X") -> 3 | N99: =COUNTIF('ANÁLISIS PARTICIPATIVO'!AD28:AD43,"X") -> 1 | O99: =SUM(I99:J99) -> 1 | S99: =E99/D99*O99/100 -> 0.015 | W99: =O99*100%/D99 -> 0.05
A100: DETERMINANTE AMBIENTAL | D100: 11 | E100: =E14 -> 30 | I100: =COUNTIF('ANÁLISIS PARTICIPATIVO'!V44:V54,"X") -> 4 | J100: =COUNTIF('ANÁLISIS PARTICIPATIVO'!W44:W54,"X") -> 0 | K100: =COUNTIF('ANÁLISIS PARTICIPATIVO'!X44:X54,"X")+COUNTIF('ANÁLISIS PARTICIPATIVO'!Y44:Y54,"X") -> 6 | M100: =COUNTIF('ANÁLISIS PARTICIPATIVO'!AB44:AB54,"X") -> 1 | N100: =COUNTIF('ANÁLISIS PARTICIPATIVO'!AD44:AD54,"X") -> 0 | O100: =SUM(I100:J100) -> 4 | S100: =E100/D100*O100/100 -> 0.1090909091 | W100: =O100*100%/D100 -> 0.3636363636
A136: CONSOLIDADO OPINIÓN ESPECIALISTA EN ERGONOMÍA
I138: OPINIÓN SOBRE PRESENCIA Y/O FRECUENCIA DE OCURRENCIA DE LAS VARIABLES EVALUADAS
D139: No. DE VARIABLES EVALUADAS | E139: % IMPORTANCIA ASIGNADO POR DETERMINANTE | I139: Sí, siempre | K139: Parcialmente | M139: No, nunca | N139: No aplica | O139: SUMA DE VARIABLES QUE OCURREN SIEMPRE O MÁS DEL 50% O, NO APLICAN | S139: % GESTIÓN DE INTERVENCIÓN SEGÚN % DE IMPORTANCIA ASIGNADO POR DETERMINANTE | W139: %GESTIÓN DE INTERVENCIÓN GENERAL POR DETERMINANTE
I140: =o>7 horas >90% del tiempo | J140: >=4 y < 7 horas 50% a 89% del tiempo | K140: >=2 y < 4 horas 25% a 49% del tiempo | L140: < 2 horas 1% a 24% del tiempo
A141: DETERMINANTE ORGANIZACIONAL | D141: 16 | E141: =E11 -> 30 | I141: =COUNTIF('ANÁLISIS PARTICIPATIVO'!AE9:AE24,"X") -> 2 | J141: 0 | K141: =COUNTIF('ANÁLISIS PARTICIPATIVO'!AF9:AF24,"X") -> 5 | M141: =COUNTIF('ANÁLISIS PARTICIPATIVO'!AK9:AK24,"X") -> 9 | N141: =COUNTIF('ANÁLISIS PARTICIPATIVO'!AM9:AM24,"X") -> 0 | O141: =SUM(I141:J141) -> 2 | S141: =E141/D141*O141/100 -> 0.0375 | W141: =O141*100%/D141 -> 0.125
A142: DETERMINANTE HUMANA | D142: 2 | E142: =E12 -> 10 | I142: =COUNTIF('ANÁLISIS PARTICIPATIVO'!AE25:AE26,"X") -> 1 | J142: 0 | K142: =COUNTIF('ANÁLISIS PARTICIPATIVO'!AF25:AF26,"X") -> 0 | M142: =COUNTIF('ANÁLISIS PARTICIPATIVO'!AK25:AK26,"X") -> 1 | N142: =COUNTIF('ANÁLISIS PARTICIPATIVO'!AM25:AM26,"X") -> 0 | O142: =SUM(I142:J142) -> 1 | S142: =E142/D142*O142/100 -> 0.05 | W142: =O142*100%/D142 -> 0.5
A143: DETERMINANTE TECNOLÓGICA | D143: 20 | E143: =E13 -> 30 | I143: =COUNTIF('ANÁLISIS PARTICIPATIVO'!AE28:AE43,"X") -> 1 | J143: =COUNTIF('ANÁLISIS PARTICIPATIVO'!AF28:AF43,"X") -> 0 | K143: =COUNTIF('ANÁLISIS PARTICIPATIVO'!AG28:AG43,"X")+COUNTIF('ANÁLISIS PARTICIPATIVO'!AH28:AH43,"X") -> 6 | M143: =COUNTIF('ANÁLISIS PARTICIPATIVO'!AK28:AK43,"X") -> 8 | N143: =COUNTIF('ANÁLISIS PARTICIPATIVO'!AM28:AM43,"X") -> 1 | O143: =SUM(I143:J143) -> 1 | S143: =E143/D143*O143/100 -> 0.015 | W143: =O143*100%/D143 -> 0.05
A144: DETERMINANTE AMBIENTAL | D144: 11 | E144: =E14 -> 30 | I144: =COUNTIF('ANÁLISIS PARTICIPATIVO'!AE44:AE54,"X") -> 2 | J144: =COUNTIF('ANÁLISIS PARTICIPATIVO'!AF44:AF54,"X") -> 0 | K144: =COUNTIF('ANÁLISIS PARTICIPATIVO'!AG44:AG54,"X")+COUNTIF('ANÁLISIS PARTICIPATIVO'!AH44:AH54,"X") -> 7 | M144: =COUNTIF('ANÁLISIS PARTICIPATIVO'!AK44:AK54,"X") -> 2 | N144: =COUNTIF('ANÁLISIS PARTICIPATIVO'!AM44:AM54,"X") -> 0 | O144: =SUM(I144:J144) -> 2 | S144: =E144/D144*O144/100 -> 0.05454545455 | W144: =O144*100%/D144 -> 0.1818181818
A180: CONSOLIDADO OPINIÓN PARTICIPANTES EN LA EVALUACIÓN
J182: %GESTIÓN DE INTERVENCIÓN GENERAL POR DETERMINANTE
J183: TRABAJADOR EXPERTO | K183: TRABAJADOR SUPERVISOR | L183: TRABAJADOR RESPONSABLE DE DISEÑO Y MEJORAMIENTO DE PROCESOS | M183: ESPECIALISTA EN ERGONOMÍA
D184: DETERMINANTE ORGANIZACIONAL | J184: =W11 -> 0.0625 | K184: =W54 -> 0.0625 | L184: =W97 -> 0.0625 | M184: =W141 -> 0.125
D185: DETERMINANTE HUMANA | J185: =W12 -> 0.5 | K185: =W55 -> 0.5 | L185: =W98 -> 0.5 | M185: =W142 -> 0.5
D186: DETERMINANTE TECNOLÓGICA | J186: =W13 -> 0.0625 | K186: =W56 -> 0.05 | L186: =W99 -> 0.05 | M186: =W143 -> 0.05
D187: DETERMINANTE AMBIENTAL | J187: =W14 -> 0.2727272727 | K187: =W57 -> 0.3636363636 | L187: =W100 -> 0.3636363636 | M187: =W144 -> 0.1818181818
A223: CONCLUSIONES FINALES

Sheet PONDERACIONES (hidden)
A1: Municipio | D1: Indicadores de seguimiento plan de acción
A2: Abejorral | B2: SI | C2: Suficiente | D2: Cobertura de trabajadores
A3: Abrego | B3: NO | C3: Regular | D3: Cobertura de áreas
A4: Abriaquí | C4: Sin información | D4: Reducción del grado de riesgo
A5: Acacías | D5: Incidencia
A6: Acandí | D6: Prevalencia
A7: Acevedo | D7: Ausentismo
A8: Achí | D8: Cumplimiento de actividades
A9: Agrado
A10: Agua de Dios
A11: Aguachica
A12: Aguada
A13: Aguadas
A14: Aguazul
A15: Agustín Codazzi
A16: Aipe
A17: Albán
A18: Albán
A19: Albania
A20: Albania
A21: Albania
A22: Alcalá
A23: Aldana
A24: Alejandría
A25: Algarrobo
A26: Algeciras
A27: Almaguer
A28: Almeida
A29: Alpujarra
A30: Altamira
A31: Alto Baudo
A32: Altos del Rosario
A33: Alvarado
A34: Amagá
A35: Amalfi
A36: Ambalema
A37: Anapoima
A38: Ancuyá
A39: Andalucía
A40: Andes
A41: Angelópolis
A42: Angostura
A43: Anolaima
A44: Anorí
A45: Anserma
A46: Ansermanuevo
A47: Anza
A48: Anzoátegui
A49: Apartadó
A50: Apía
A51: Apulo
A52: Aquitania
A53: Aracataca
A54: Aranzazu
A55: Aratoca
A56: Arauca
A57: Arauquita
A58: Arbeláez
A59: Arboleda
A60: Arboledas
A61: Arboletes
A62: Arcabuco
A63: Arenal
A64: Argelia
A65: Argelia
A66: Argelia
A67: Ariguaní
A68: Arjona
A69: Armenia
A70: Armenia
A71: Armero
A72: Arroyohondo
A73: Astrea
A74: Ataco
A75: Atrato
A76: Ayapel
A77: Bagadó
A78: Bahía Solano
A79: Bajo Baudó
A80: Balboa
A81: Balboa
A82: Baranoa
A83: Baraya
A84: Barbacoas
A85: Barbosa
A86: Barbosa
A87: Barichara
A88: Barranca de Upía
A89: Barrancabermeja
A90: Barrancas
A91: Barranco de Loba
A92: Barranco Minas (CD)
A93: Barranquilla
A94: Becerril
A95: Belalcázar
A96: Belén
A97: Belén
A98: Belén de Los Andaquies
A99: Belén de Umbría
A100: Bello
A101: Belmira
A102: Beltrán
A103: Berbeo
A104: Betania
A105: Betéitiva
A106: Betulia
A107: Betulia
A108: Bituima
A109: Boavita
A110: Bochalema
A111: Bogotá, D.C.
A112: Bojacá
A113: Bojaya
A114: Bolívar
A115: Bolívar
A116: Bolívar
A117: Bosconia
A118: Boyacá
A119: Briceño
A120: Briceño
A121: Bucaramanga
A122: Bucarasica
A123: Buenaventura
A124: Buenavista
A125: Buenavista
A126: Buenavista
A127: Buenavista
A128: Buenos Aires
A129: Buesaco
A130: Bugalagrande
A131: Buriticá
A132: Busbanzá
A133: Cabrera
A134: Cabrera
A135: Cabuyaro
A136: Cacahual (CD)
A137: Cáceres
A138: Cachipay
A139: Cachirá
A140: Cácota
A141: Caicedo
A142: Caicedonia
A143: Caimito
A144: Cajamarca
A145: Cajibío
A146: Cajicá
A147: Calamar
A148: Calamar
A149: Calarca
A150: Caldas
A151: Caldas
A152: Caldono
A153: Cali
A154: California
A155: Calima
A156: Caloto(1)(3)
A157: Campamento
A158: Campo de La Cruz
A159: Campoalegre
A160: Campohermoso
A161: Canalete
A162: Candelaria
A163: Candelaria
A164: Cantagallo
A165: Cañasgordas
A166: Caparrapí
A167: Capitanejo
A168: Caqueza
A169: Caracolí
A170: Caramanta
A171: Carcasí
A172: Carepa
A173: Carmen de Apicalá
A174: Carmen de Carupa
A175: Carmen del Darien
A176: Carolina
A177: Cartagena
A178: Cartagena del Chairá
A179: Cartago
A180: Caruru
A181: Casabianca
A182: Castilla la Nueva
A183: Caucasia
A184: Cepitá
A185: Cereté
A186: Cerinza
A187: Cerrito
A188: Cerro San Antonio
A189: Cértegui
A190: Chachagüí
A191: Chaguaní
A192: Chalán
A193: Chameza
A194: Chaparral
A195: Charalá
A196: Charta
A197: Chía
A198: Chigorodó
A199: Chima
A200: Chimá
... 923 more rows

Sheet PLAN DE ACCIÓN
A2: Herramienta de Evaluación Profunda Plan de acción
A6: Estrategias avaladas para plan de acción | B6: Prioridad de la aplicación | C6: Responsable (s) | D6: Cargo Responsable (s) | E6: Fecha de inicio implementación (dd/mm/aaaa) | F6: Fecha de finalización de la implementación (dd/mm/aaaa) | G6: Indicadores de seguimiento | H6: Resultado Meta | I6: Fecha de seguimiento (dd/mm/aaaa)
A7: Total general

Sheet FORMATO DE CAMPO
A2: Herramienta de Evaluación Profunda Análisis Participativo
A4: Razón social | O4: Nombre de la tarea crítica por movilización manual de pacientes | AO4: Nombre del proceso crítico
D6: ACTORES DE LA TAREA | AE6: ESPECIALISTA EN ERGONOMÍA
D7: TRABAJADOR EXPERTO | M7: SUPERVISOR O JEFE | V7: RESPONSABLE DISEÑO Y MEJORAMIENTO DEL PROCESO
C8: VARIABLES A EVALUAR | D8: SÍ, siempre | E8: Parcialmente | J8: No, nunca | L8: No aplica | M8: SÍ, siempre | N8: Parcialmente | S8: No, nunca | U8: No aplica | V8: SÍ, siempre | W8: Parcialmente | AB8: No, nunca | AD8: No aplica | AE8: SÍ, siempre | AF8: Parcialmente | AK8: No, nunca | AM8: No aplica | AN8: TOTAL | AO8: OBSERVACIONES Y CONCLUSIONES | AQ8: ESTRATEGIAS DE INTERVENCIÓN SUGERIDAS POR ACTORES DE LA TAREA | AR8: ESTRATEGIAS DE INTERVENCIÓN SUGERIDAS POR ESPECIALISTA EN ERGONOMÍA
A9: DETERMINANTE ORGANIZACIONAL | B9: 1 | C9: Hay una política de Seguridad y Salud en el trabajo, que se ve reflejada en la asignación de recursos para las intervenciones dirigidas a mitigar la problemática por MMP | AN9: =H9+I9+K9+Q9+R9+T9+Z9+AA9+AC9+AI9+AJ9+AL9 -> 0
B10: 2 | C10: Se mantiene actualizada (últimos 6 meses) la información para la vigilancia de las condiciones de salud músculo esquelética de los trabajadores expuestos y de las condiciones de trabajo en donde se ejecutan tareas de MMP | AN10: =H10+I10+K10+Q10+R10+T10+Z10+AA10+AC10+AI10+AJ10+AL10 -> 0
B11: 3 | C11: Se realizan exámenes médicos ocupacionales con énfasis en evaluación clínica de los desórdenes músculo esqueléticos de columna, miembros superiores e inferiores. | AN11: 0
B12: 4 | C12: Se realizan evaluaciones de las cualidades físicas (fuerza, flexibilidad, resistencia cardiovascular) | AN12: 0
B13: 5 | C13: La asignación de enfermeras (auxiliares y jefes) en la unidad o piso es suficiente y/o se ajusta al numero de pacientes, teniendo en cuenta las características funcionales y necesidad de asistencia que requieren los pacientes | AN13: 0
B14: 6 | C14: La asignación de pacientes permite la alternancia en la atención de usuarios con limitaciones funcionales elevadas y usuarios funcionales que no demandan asistencia para su movilización, permitiendo la recuperación física de los expuestos. | AN14: 0
B15: 7 | C15: Existe planeación para suministrar y utilizar, prioritaria y equitativamente las ayudas mecánicas (camillas, sillas de ruedas, grúas, rollos de movilización) en el piso o unidad | AN15: 0
B16: 8 | C16: Existe un programa de mantenimiento predictivo y/o preventivo que garantice el adecuado funcionamiento de las ayudas mecánicas | AN16: 0
B17: 9 | C17: Se documentan requerimientos ergonómicos en los procedimientos de selección y adquisición de ayudas mecánicas (camas, sillas de ruedas, camillas, rollos de movilización), teniendo en cuenta las necesidades de movilización de pacientes con diferentes caracteristicas de funcionalidad e independencia. | AN17: 0
B18: 10 | C18: Existen procedimientos para estimar las necesidades de ayudas mecánicas y trabajo en equipo durante la movilización de pacientes | AN18: 0
B19: 11 | C19: Los jefes de área (unidad o piso) conocen los procedimientos seguros para la MMP y velan por su cumplimiento | AN19: 0
B20: 12 | C20: La asignación del número de pacientes por enfermera, permite la colaboración entre el grupo de trabajo asignado al piso o unidad | AN20: 0
B21: 13 | C21: La tarea es ejecutada por personal de contratación directa | AN21: 0
B22: 14 | C22: Se implementa un programa de formación en prevención de DME y AT por MMP | AN22: 0
B23: 15 | C23: Se cuenta con un perfil ocupacional específico para la selección de la población que realiza atención de pacientes que requieren asistencia (transferencia, movilización, baño, vestido, etc) | AN23: 0
B24: 16 | C24: Las mujeres en estado de embarazo ejecutan actividades con ausencia o muy baja exigencia de MMP | AN24: 0
A25: DETERMINANTE HUMANA | B25: 17 | C25: Los trabajadores demuestran estar entrenados y poseer conocimiento suficiente para desempeñar de forma segura la MMP | AN25: 0
B26: 18 | C26: Se evidencia la planificación y trabajo en equipo entre el personal del piso o Unidad para realizar tareas de MMP | AN26: 0
D27: =o>7 horas >90% del tiempo | E27: >=4 y < 7 horas 50% a 89% del tiempo | F27: >=2 y < 4 horas 25% a 49% del tiempo | G27: < 2 horas 1% a 24% del tiempo | J27: No, nunca | L27: No aplica | M27: =o>7 horas >90% del tiempo | N27: >=4 y < 7 horas 50% a 89% del tiempo | O27: >=2 y < 4 horas 25% a 49% del tiempo | P27: < 2 horas 1% a 24% del tiempo | S27: No, nunca | U27: No aplica | V27: =o>7 horas >90% del tiempo | W27: >=4 y < 7 horas 50% a 89% del tiempo | X27: >=2 y < 4 horas 25% a 49% del tiempo | Y27: < 2 horas 1% a 24% del tiempo | AB27: No, nunca | AD27: No aplica | AE27: =o>7 horas >90% del tiempo | AF27: >=4 y < 7 horas 50% a 89% del tiempo | AG27: >=2 y < 4 horas 25% a 49% del tiempo | AH27: < 2 horas 1% a 24% del tiempo | AK27: No, nunca | AM27: No aplica | AN27: TOTAL
A28: DETERMINANTE TECNOLÓGICA | B28: 19 | C28: Las ayudas mecánicas para la MMP ( sillas de ruedas, sillas pato, camillas) asignadas al piso o Unidad son suficientes para los requerimientos que se tienen | AN28: =H28+I28+K28+Q28+R28+T28+Z28+AA28+AC28+AI28+AJ28+AL28 -> 0
B29: 20 | C29: Las camas y camillas presentan sistemas de regulación que permiten al personal adaptar la altura durante la MMP | AN29: 0
B30: 21 | C30: Las camas y camillas tienen dispositivos mecánicos en buen estado que permiten regular la inclinación de la cabecera según la necesidad del paciente y conveniencia del personal | AN30: 0
B31: 22 | C31: La ubicación de la cama en las habitaciones permite espacio suficiente para que el personal pueda ubicarse correctamente, evitar giros de tronco >45° y permite el movimiento del cuerpo en bloque | AN31: 0
B32: 23 | C32: La dimensión de camas y camillas permiten la adecuada alineación postural de la columna y miembros superiores durante la movilización y asistencia al paciente | AN32: 0
B33: 24 | C33: Las barandas de las camas y camillas se pueden retirar o ajustar con el fin de facilitar la movilización y transferencia del paciente. | AN33: 0
B34: 25 | C34: Existen dispositivos o mecanismos (agarraderas suspendidas al techo, botones para inclinar la cama, subir o baja barandas) para que los pacientes puedan ayudarse durante su movilización y transferencia | AN34: 0
B35: 26 | C35: La camas y camillas son fáciles de empujar y ubicar según las características locativas del área | AN35: 0
B36: 27 | C36: La sillas de ruedas (o sillas pato) son fáciles de empujar y ubicar según las características físicas y espacios del área | AN36: 0
B37: 28 | C37: La dimensión (ancho) de las sillas de ruedas o sillas pato permiten que el paciente se siente o levante fácilmente | AN37: 0
B38: 29 | C38: La silla de ruedas permite retirar o desarmar los apoyapiés y otros dispositivos como correas de ajuste, con el fin de permitir el ingreso adecuado del personal que realiza la MMP | AN38: 0
B39: 30 | C39: Cuentan con grúas para el levantamiento de pacientes con necesidades especiales y dependientes para movilizarse | AN39: 0
B40: 31 | C40: Las grúas de levantamiento presentan tamaños acordes con los espacios físicos de las instalaciones y sistemas de ajustabilidad horizontal y vertical , facilitando la maniobrabilidad y ubicación del paciente | AN40: 0
B41: 32 | C41: Las ayudas mecánicas rodantes (camas, sillas pato) tienen agarraderas ergonomicas que permitan empujarlas facilmente | AN41: 0
B42: 33 | C42: El piso o Unidad cuenta con suficientes rodillos y tablas para la movilización de pacientes | AN42: 0
B43: 34 | C43: Los sistemas de ajustabilidad y freno de las ayudas mecánicas se encuentran en adecuado estado de mantenimiento | AN43: 0
A44: DETERMINANTE AMBIENTAL | B44: 39 | C44: Los espacios físicos (corredores, salas de imágenes diagnosticas, etc.) donde se realiza la MMP con uso de ayudas mecánicas son amplios y libres de obstáculos | AN44: 0
B45: 40 | C45: Los baños (duchas, inodoros y lavamanos) permiten el ingreso fácil del paciente cuando esta siendo movilizado en la silla pato , así como de otros aditamentos (caminador) | AN45: 0
B46: 41 | C46: Los baños (duchas, inodoro ,lavamanos) cuentan con elementos de asimiento (barras) que les permite agarrarse y apoyarse, facilitando la MMP | AN46: 0
B47: 42 | C47: El diámetro de las puertas permite la accesibilidad adecuada de las ayudas mecánicas ( grúa, cama, silla de ruedas, camilla) | AN47: 0
B48: 43 | C48: La altura de los inodoros cuenta con la medida ergonómica recomendada (55 cm), en beneficio de la accesibilidad durante la MMP | AN48: 0
B49: 44 | C49: Las duchas son móviles y cuentan con bandeja o silla para sentar al paciente. | AN49: 0
B50: 45 | C50: Los pisos de los baños donde se realiza la asistencia a los pacientes son antideslizantes, sin cambios de nivel y permite realizar la MMP bajo condiciones de seguridad. | AN50: 0
B51: 46 | C51: Los pisos de las instalaciones físicas de los diferentes unidades son antideslizantes , sin cambios de nivel y permite realizar la MMP bajo condiciones de seguridad | AN51: 0
B52: 47 | C52: Los espacios que necesariamente presentan cambios de nivel (entrada y salida a ascensores, rampas) se mantienen debidamente demarcados, libres de obstáculos, con anchos y largos suficientes, así como pendientes que responden a la fórmula (desnivel x 100 / 10%) | AN52: 0
B53: 48 | C53: La altura de las sillas de estar o descanso donde se sientan los pacientes cuentan con la medida ergonómica recomendada (55 cms) | AN53: 0
B54: 49 | C54: Las condiciones de iluminación general favorecen la visibilidad durante la MMP | AN54: 0
